fUST/lending_fUST_20250819
["ID","MTS","AMOUNT","RATE_DAILY","PERIOD"]
[380182966,1755598242342,-1247.19,0.00019452,2]
[380182967,1755598242352,-480.0,0.00019452,2]
[380182968,1755598242361,-480.0,0.00019452,2]
[380182969,1755598242371,-480.0,0.00019452,2]
[380182970,1755598242380,-480.0,0.00019452,2]
[380182971,1755598242391,-480.0,0.00019452,2]
[380182972,1755598242401,-460.0,0.00019452,2]
[380182973,1755598242410,-480.0,0.00019452,2]
[380182974,1755598242420,-291.04510732,0.00019452,2]
[380182975,1755598242430,-556.30179579,0.00019452,2]
[380182976,1755598242440,-480.0,0.00019452,2]
[380182977,1755598242450,-480.0,0.00019452,2]
[380182978,1755598242459,-445.31885404,0.00019452,2]
[380182979,1755598242469,-480.0,0.00019452,2]
[380182980,1755598242479,-480.0,0.00019452,2]
[380182981,1755598242489,-480.0,0.00019452,2]
[380182982,1755598242498,-480.0,0.00019452,2]
[380182983,1755598242508,-480.0,0.00019452,2]
[380182984,1755598242518,-480.0,0.00019452,2]
[380182985,1755598242527,-268.78406455,0.00019452,2]
[380182986,1755598242539,-660.66,0.00019452,2]
[380182987,1755598242549,-360.0,0.00019452,2]
[380182988,1755598242559,-480.0,0.00019452,2]
[380182989,1755598242568,-480.0,0.00019452,2]
[380182990,1755598242577,-480.0,0.00019452,2]
[380182991,1755598242587,-1189.71,0.00019452,2]
[380182992,1755598242597,-480.0,0.00019452,2]
[380182993,1755598242607,-480.0,0.00019452,2]
[380182994,1755598242616,-714.85,0.00019452,2]
[380182996,1755598242626,-480.0,0.00019452,2]
[380182997,1755598242635,-480.0,0.00019452,2]
[380182998,1755598242644,-486.74,0.00019452,2]
[380182999,1755598242654,-480.0,0.00019452,2]
[380183000,1755598242664,-480.0,0.00019452,2]
[380183001,1755598242673,-480.0,0.00019452,2]
[380183003,1755598242683,-480.0,0.00019452,2]
[380183004,1755598242692,-480.0,0.00019452,2]
[380183005,1755598242701,-480.0,0.00019452,2]
[380183006,1755598242710,-480.0,0.00019452,2]
[380183007,1755598242721,-480.0,0.00019452,2]
[380183009,1755598242731,-480.0,0.00019452,2]
[380183011,1755598242740,-424.84335385,0.00019452,2]
[380183012,1755598242749,-916.97,0.00019452,2]
[380183014,1755598242758,-480.0,0.00019452,2]
[380183016,1755598242767,-480.0,0.00019452,2]
[380183018,1755598242777,-843.11,0.00019452,2]
[380183019,1755598242789,-564.0,0.00019452,2]
[380183022,1755598242798,-480.0,0.00019452,2]
[380183024,1755598242807,-480.0,0.00019452,2]
[380183025,1755598242816,-480.0,0.00019452,2]
[380183026,1755598242825,-480.0,0.00019452,2]
[380183027,1755598242834,-480.0,0.00019452,2]
[380183028,1755598242843,-430.44422325,0.00019452,2]
[380183029,1755598242852,-480.0,0.00019452,2]
[380183030,1755598242863,-480.0,0.00019452,2]
[380183031,1755598242871,-480.0,0.00019452,2]
[380183033,1755598242885,-480.0,0.00019452,2]
[380183035,1755598242900,-480.0,0.00019452,2]
[380183036,1755598242912,-480.0,0.00019452,2]
[380183037,1755598242925,-480.0,0.00019452,2]
[380183038,1755598242938,-480.0,0.00019452,2]
[380183040,1755598242952,-480.0,0.00019452,2]
[380183042,1755598242965,-480.0,0.00019452,2]
[380183043,1755598242979,-386.94380161,0.00019452,2]
[380183044,1755598242993,-422.77003729,0.00019452,2]
[380183045,1755598243005,-480.0,0.00019452,2]
[380183046,1755598243019,-480.0,0.00019452,2]
[380183047,1755598243032,-480.0,0.00019452,2]
[380183048,1755598243047,-440.0,0.00019452,2]
[380183049,1755598243061,-828.89,0.00019452,2]
[380183050,1755598243071,-604.29925035,0.00019452,2]
[380183051,1755598243084,-480.0,0.00019452,2]
[380183052,1755598243096,-598.46,0.00019452,2]
[380183054,1755598243109,-480.0,0.00019452,2]
[380183055,1755598243123,-480.0,0.00019452,2]
[380183056,1755598243141,-3132.72,0.00019452,2]
[380183057,1755598243160,-220.87746533,0.00019452,2]
[380183058,1755598243172,-480.0,0.00019452,2]
[380183059,1755598243183,-673.66,0.00019452,2]
[380183060,1755598243196,-3906.62,0.00019452,2]
[380183061,1755598243209,-1418.18,0.00019452,2]
[380183063,1755598243229,-480.0,0.00019452,2]
[380183065,1755598243240,-480.0,0.00019452,2]
[380183067,1755598243252,-480.0,0.00019452,2]
[380183068,1755598243267,-1042.33,0.00019452,2]
[380183069,1755598243279,-480.0,0.00019452,2]
[380183070,1755598243290,-460.0,0.00019452,2]
[380183071,1755598243302,-1126.17,0.00019452,2]
[380183072,1755598243315,-480.0,0.00019452,2]
[380183073,1755598243327,-480.0,0.00019452,2]
[380183074,1755598243339,-480.0,0.00019452,2]
[380183075,1755598243352,-480.0,0.00019452,2]
[380183076,1755598243364,-480.0,0.00019452,2]
[380183077,1755598243377,-660.83,0.00019452,2]
[380183078,1755598243390,-480.0,0.00019452,2]
[380183079,1755598243402,-480.0,0.00019452,2]
[380183080,1755598243414,-480.0,0.00019452,2]
[380183081,1755598243426,-1118.0,0.00019452,2]
[380183083,1755598243437,-480.0,0.00019452,2]
[380183084,1755598243450,-480.0,0.00019452,2]
[380183085,1755598243461,-480.0,0.00019452,2]
[380183086,1755598243473,-480.0,0.00019452,2]
[380183087,1755598243484,-480.0,0.00019452,2]
[380183088,1755598243496,-1618.92,0.00019452,2]
[380183089,1755598243508,-783.0,0.00019452,2]
[380183090,1755598243520,-583.08,0.00019452,2]
[380183091,1755598243532,-2007.25,0.00019452,2]
[380183092,1755598243544,-261.28086389,0.00019452,2]
[380183093,1755598243555,-480.0,0.00019452,2]
[380183094,1755598243567,-556.94,0.00019452,2]
[380183095,1755598243579,-483.23,0.00019452,2]
[380183096,1755598243591,-480.0,0.00019452,2]
[380183097,1755598243603,-2279.4,0.00019452,2]
[380183098,1755598243615,-480.0,0.00019452,2]
[380183099,1755598243626,-480.0,0.00019452,2]
[380183100,1755598243638,-187.11495185,0.00019452,2]
[380183101,1755598243650,-480.0,0.00019452,2]
[380183102,1755598243662,-867.74,0.00019452,2]
[380183103,1755598243674,-480.0,0.00019452,2]
[380183104,1755598243686,-440.0,0.00019452,2]
[380183105,1755598243697,-480.0,0.00019452,2]
[380183106,1755598243709,-239.38561285,0.00019452,2]
[380183107,1755598243721,-598.4,0.00019452,2]
[380183108,1755598243733,-480.0,0.00019452,2]
[380183109,1755598243745,-573.71,0.00019452,2]
[380183110,1755598243757,-643.97,0.00019452,2]
[380183111,1755598243769,-1764.71,0.00019452,2]
[380183112,1755598243782,-728.38,0.00019452,2]
[380183113,1755598243793,-480.0,0.00019452,2]
[380183114,1755598243805,-480.0,0.00019452,2]
[380183115,1755598243817,-714.7,0.00019452,2]
[380183116,1755598243828,-480.0,0.00019452,2]
[380183117,1755598243840,-203.67309381,0.00019452,2]
[380183118,1755598243852,-412.2096394,0.00019452,2]
[380183119,1755598243864,-369.87757234,0.00019452,2]
[380183120,1755598243874,-779.93,0.00019452,2]
[380183121,1755598243883,-2426.87,0.00019452,2]
[380183122,1755598243893,-480.0,0.00019452,2]
[380183133,1755598244038,-480.0,0.00019452,2]
[380183135,1755598244047,-480.0,0.00019452,2]
[380183137,1755598244056,-5907.38,0.00019452,2]
[380183139,1755598244066,-7280.33,0.00019452,2]
[380183141,1755598244075,-480.0,0.00019452,2]
[380183143,1755598244085,-480.0,0.00019452,2]
[380183145,1755598244094,-480.0,0.00019452,2]
[380183146,1755598244104,-480.0,0.00019452,2]
[380183147,1755598244113,-547.61,0.00019452,2]
[380183148,1755598244122,-480.0,0.00019452,2]
[380183149,1755598244133,-480.0,0.00019452,2]
[380183150,1755598244146,-480.0,0.00019452,2]
[380183151,1755598244156,-711.69,0.00019452,2]
[380183152,1755598244166,-480.0,0.00019452,2]
[380183153,1755598244176,-480.0,0.00019452,2]
[380183154,1755598244187,-480.0,0.00019452,2]
[380183155,1755598244197,-480.0,0.00019452,2]
[380183156,1755598244207,-480.0,0.00019452,2]
[380183157,1755598244218,-480.0,0.00019452,2]
[380183158,1755598244228,-480.0,0.00019452,2]
[380183159,1755598244238,-164.76932104,0.00019452,2]
[380183160,1755598244248,-995.77,0.00019452,2]
[380183161,1755598244257,-1008.46,0.00019452,2]
[380183162,1755598244267,-433.32605656,0.00019452,2]
[380183163,1755598244276,-2250.25,0.00019452,2]
[380183164,1755598244286,-864.22,0.00019452,2]
[380183165,1755598244295,-480.0,0.00019452,2]
[380183166,1755598244305,-480.0,0.00019452,2]
[380183167,1755598244314,-480.0,0.00019452,2]
[380183168,1755598244324,-480.0,0.00019452,2]
[380183169,1755598244333,-942.15,0.00019452,2]
[380183170,1755598244343,-416.02334464,0.00019452,2]
[380183171,1755598244352,-2584.01,0.00019452,2]
[380183172,1755598244361,-480.0,0.00019452,2]
[380183173,1755598244370,-480.0,0.00019452,2]
[380183174,1755598244380,-480.0,0.00019452,2]
[380183175,1755598244390,-273.1544758,0.00019452,2]
[380183176,1755598244399,-1502.78,0.00019452,2]
[380183177,1755598244409,-480.0,0.00019452,2]
[380183178,1755598244417,-1080.46,0.00019452,2]
[380183179,1755598244427,-500.0,0.00019452,2]
[380183180,1755598244436,-500.0,0.00019473,2]
[380183181,1755598244445,-590.67306603,0.00019489,2]
[380183182,1755598244454,-300.0,0.000195,2]
[380183183,1755598244464,-300.0,0.000195,2]
[380183184,1755598244473,-150.0,0.000195,2]
[380183185,1755598244483,-150.0,0.000195,2]
[380183186,1755598244492,-150.0,0.000195,5]
[380183187,1755598244503,-150.0,0.000195,5]
[380183188,1755598244512,-150.0,0.000195,5]
[380183189,1755598244522,-600.0,0.000195,5]
[380183190,1755598244539,-600.0,0.000195,5]
[380183191,1755598244548,-600.0,0.000195,2]
[380183192,1755598244557,-600.0,0.000195,2]
[380183193,1755598244567,-5673.96647529,0.000195,2]
[380183194,1755598244577,-605.42652479,0.0001952,2]
[380183195,1755598244586,-235.412397,0.00019543,2]
[380183196,1755598244595,-160.0,0.00019546,2]
[380183197,1755598244604,-160.0,0.00019546,2]
[380183198,1755598244613,-160.0,0.00019549,2]
[380183199,1755598244623,-216.8835046,0.00019549,2]
[380183200,1755598244632,-160.0,0.00019549,2]
[380183201,1755598244641,-375.88899365,0.00019549,2]
[380183202,1755598244650,-232.21311493,0.00019549,2]
[380183203,1755598244659,-160.0,0.00019549,2]
[380183204,1755598244668,-12685.85563623,0.00019549,2]
[380183205,1755598244678,-160.0,0.00019549,2]
[380183206,1755598244687,-160.0,0.00019549,2]
[380183207,1755598244696,-417.15472785,0.00019549,2]
[380183208,1755598244705,-843.93972674,0.00019549,2]
[380183209,1755598244714,-160.0,0.00019549,2]
[380183210,1755598244723,-215.79176414,0.00019549,2]
[380183211,1755598244732,-160.0,0.00019549,2]
[380183212,1755598244742,-528.6845513,0.00019549,2]
[380183213,1755598244750,-500.0,0.0001955,2]
[380183214,1755598244760,-151.0,0.0001955,2]
[380183215,1755598244769,-200.0,0.00019561,20]
[380183216,1755598244778,-200.0,0.00019561,20]
[380183217,1755598244788,-200.0,0.00019561,20]
[380183218,1755598244798,-200.0,0.00019561,20]
[380183219,1755598244807,-200.0,0.00019561,20]
[380183220,1755598244819,-200.0,0.00019561,20]
[380183221,1755598244828,-200.0,0.00019561,20]
[380183222,1755598244837,-200.0,0.00019561,20]
[380183223,1755598244847,-200.0,0.00019561,20]
[380183224,1755598244856,-200.0,0.00019561,20]
[380183225,1755598244865,-200.0,0.00019561,20]
[380183226,1755598244875,-200.0,0.00019561,20]
[380183227,1755598244884,-200.0,0.00019561,20]
[380183228,1755598244895,-200.0,0.00019561,20]
[380183229,1755598244904,-200.0,0.00019561,20]
[380183230,1755598244913,-200.0,0.00019561,20]
[380183231,1755598244923,-200.0,0.00019561,20]
[380183232,1755598244932,-200.0,0.00019561,20]
[380183233,1755598244941,-200.0,0.00019561,20]
[380183234,1755598244950,-200.0,0.00019561,20]
[380183235,1755598244959,-600.0,0.00019561,20]
[380183236,1755598244968,-590.67306603,0.00019695,2]
[380183237,1755598244977,-160.842982,0.00019699,2]
[380183238,1755598244986,-580.8939941,0.00019699,2]
[380183239,1755598244995,-198.0605393,0.00019699,2]
[380183240,1755598245005,-321.685964,0.00019699,2]
[380183241,1755598245015,-306.0,0.00019699,2]
[380183242,1755598245024,-157.4194852,0.00019699,2]
[380183243,1755598245036,-293.8943201,0.00019699,2]
[380183244,1755598245045,-580.8939941,0.00019699,2]
[380183245,1755598245055,-153.0,0.00019699,2]
[380183246,1755598245064,-293.8943201,0.00019699,2]
[380183247,1755598245073,-153.0,0.00019699,2]
[380183248,1755598245082,-160.842982,0.00019699,2]
[380183249,1755598245091,-580.8939941,0.00019699,2]
[380183250,1755598245100,-293.8943201,0.00019699,2]
[380183251,1755598245111,-580.8939941,0.00019699,2]
[380183252,1755598245120,-941.649588,0.00019716,2]
[380183253,1755598245130,-500.0,0.0001972,2]
[380183254,1755598245140,-500.0,0.00019721,2]
[380183255,1755598245150,-500.0,0.00019721,2]
[380183256,1755598245159,-480.0,0.00019725,2]
[380183257,1755598245168,-480.0,0.00019725,2]
[380183258,1755598245192,-791.09,0.00019725,2]
[380183259,1755598245202,-480.0,0.00019725,2]
[380183260,1755598245212,-480.0,0.00019725,2]
[380183261,1755598245221,-2337.35,0.00019725,2]
[380183262,1755598245230,-500.0,0.00019725,2]
[380183263,1755598245239,-500.0,0.00019725,2]
[380183264,1755598245249,-500.0,0.00019725,2]
[380183265,1755598245258,-291.7341363,0.00019725,2]
[380183266,1755598245267,-500.0,0.00019725,2]
[380183267,1755598245277,-500.0,0.00019725,2]
[380183268,1755598245287,-647.49,0.00019725,2]
[380183269,1755598245297,-232.377118,0.00019725,2]
[380183270,1755598245307,-151.0,0.00019725,2]
[380183271,1755598245317,-151.0,0.00019725,2]
[380183272,1755598245326,-232.377118,0.00019725,2]
[380183273,1755598245335,-152.573358,0.00019725,2]
[380183274,1755598245345,-482.54212,0.00019725,2]
[380183275,1755598245354,-482.54212,0.00019725,2]
[380183276,1755598245363,-151.0,0.00019725,2]
[380183277,1755598245373,-151.0,0.00019725,2]
[380183278,1755598245382,-151.0,0.00019725,2]
[380183279,1755598245391,-165.078674,0.00019725,2]
[380183280,1755598245400,-480.0,0.00019725,2]
[380183281,1755598245409,-151.0,0.00019725,2]
[380183282,1755598245419,-179.443811,0.00019725,2]
[380183283,1755598245429,-151.0,0.00019725,2]
[380183284,1755598245438,-179.443811,0.00019725,2]
[380183285,1755598245448,-480.0,0.00019726,2]
[380183286,1755598245457,-490.25,0.00019726,2]
[380183287,1755598245466,-629.24726506,0.00019726,2]
[380183288,1755598245476,-480.0,0.00019726,2]
[380183289,1755598245486,-480.0,0.00019726,2]
[380183290,1755598245496,-480.0,0.00019726,2]
[380183291,1755598245505,-480.0,0.00019726,2]
[380183292,1755598245515,-480.0,0.00019726,2]
[380183293,1755598245524,-423.79181448,0.00019726,2]
[380183294,1755598245534,-480.0,0.00019726,2]
[380183295,1755598245543,-480.0,0.00019726,2]
[380183296,1755598245552,-480.0,0.00019726,2]
[380183297,1755598245561,-902.48,0.00019726,2]
[380183298,1755598245571,-480.0,0.00019726,2]
[380183299,1755598245580,-480.0,0.00019726,2]
[380183300,1755598245590,-480.0,0.00019726,2]
[380183302,1755598245599,-480.0,0.00019726,2]
[380183304,1755598245608,-480.0,0.00019726,2]
[380183306,1755598245618,-400.66,0.00019726,2]
[380183308,1755598245627,-480.0,0.00019726,2]
[380183310,1755598245636,-725.55,0.00019726,2]
[380183312,1755598245646,-413.88872808,0.00019726,2]
[380183314,1755598245657,-1247.19,0.00019726,2]
[380183315,1755598245667,-480.0,0.00019726,2]
[380183316,1755598245676,-440.0,0.00019726,2]
[380183317,1755598245686,-205.10700677,0.00019726,2]
[380183318,1755598245695,-620.71517411,0.00019726,2]
[380183319,1755598245704,-480.0,0.00019726,2]
[380183320,1755598245713,-480.0,0.00019726,2]
[380183321,1755598245722,-180.495187,0.00019726,2]
[380183322,1755598245732,-480.0,0.00019726,2]
[380183323,1755598245741,-480.0,0.00019726,2]
[380183324,1755598245750,-174.12704586,0.00019726,2]
[380183325,1755598245759,-480.0,0.00019726,2]
[380183326,1755598245768,-480.0,0.00019726,2]
[380183327,1755598245778,-660.66,0.00019726,2]
[380183328,1755598245788,-501.03,0.00019726,2]
[380183329,1755598245797,-480.0,0.00019726,2]
[380183330,1755598245806,-1189.71,0.00019726,2]
[380183331,1755598245816,-187.44666511,0.00019726,2]
[380183332,1755598245826,-714.85,0.00019726,2]
[380183333,1755598245837,-480.0,0.00019726,2]
[380183334,1755598245846,-480.0,0.00019726,2]
[380183335,1755598245856,-486.74,0.00019726,2]
[380183336,1755598245865,-578.62106382,0.00019726,2]
[380183337,1755598245874,-480.0,0.00019726,2]
[380183338,1755598245883,-480.0,0.00019726,2]
[380183339,1755598245893,-480.0,0.00019726,2]
[380183340,1755598245903,-480.0,0.00019726,2]
[380183341,1755598245913,-480.0,0.00019726,2]
[380183342,1755598245923,-480.0,0.00019726,2]
[380183343,1755598245933,-480.0,0.00019726,2]
[380183344,1755598245942,-916.97,0.00019726,2]
[380183345,1755598245951,-480.0,0.00019726,2]
[380183346,1755598245960,-480.0,0.00019726,2]
[380183347,1755598245969,-843.11,0.00019726,2]
[380183348,1755598245978,-564.0,0.00019726,2]
[380183349,1755598245988,-480.0,0.00019726,2]
[380183350,1755598245997,-480.0,0.00019726,2]
[380183351,1755598246006,-480.0,0.00019726,2]
[380183352,1755598246015,-480.0,0.00019726,2]
[380183353,1755598246025,-480.0,0.00019726,2]
[380183354,1755598246034,-480.0,0.00019726,2]
[380183355,1755598246043,-480.0,0.00019726,2]
[380183356,1755598246053,-480.0,0.00019726,2]
[380183357,1755598246062,-480.0,0.00019726,2]
[380183358,1755598246071,-480.0,0.00019726,2]
[380183359,1755598246080,-480.0,0.00019726,2]
[380183360,1755598246089,-480.0,0.00019726,2]
[380183361,1755598246099,-480.0,0.00019726,2]
[380183362,1755598246108,-828.89,0.00019726,2]
[380183363,1755598246117,-480.0,0.00019726,2]
[380183364,1755598246126,-598.46,0.00019726,2]
[380183365,1755598246135,-480.0,0.00019726,2]
[380183366,1755598246147,-480.0,0.00019726,2]
[380183367,1755598246157,-3132.72,0.00019726,2]
[380183368,1755598246166,-673.66,0.00019726,2]
[380183369,1755598246175,-1418.18,0.00019726,2]
[380183370,1755598246185,-3906.62,0.00019726,2]
[380183371,1755598246195,-205.97658574,0.00019726,2]
[380183372,1755598246205,-420.0,0.00019726,2]
[380183373,1755598246214,-1042.33,0.00019726,2]
[380183374,1755598246225,-1126.17,0.00019726,2]
[380183375,1755598246234,-480.0,0.00019726,2]
[380183376,1755598246244,-480.0,0.00019726,2]
[380183377,1755598246253,-480.0,0.00019726,2]
[380183378,1755598246262,-660.83,0.00019726,2]
[380183379,1755598246272,-480.0,0.00019726,2]
[380183380,1755598246281,-480.0,0.00019726,2]
[380183381,1755598246293,-480.0,0.00019726,2]
[380183382,1755598246398,-1118.0,0.00019726,2]
[380183383,1755598246408,-480.0,0.00019726,2]
[380183384,1755598246418,-480.0,0.00019726,2]
[380183385,1755598246427,-480.0,0.00019726,2]
[380183386,1755598246437,-480.0,0.00019726,2]
[380183387,1755598246446,-1618.92,0.00019726,2]
[380183388,1755598246456,-783.0,0.00019726,2]
[380183389,1755598246465,-583.08,0.00019726,2]
[380183390,1755598246474,-2007.25,0.00019726,2]
[380183391,1755598246483,-556.94,0.00019726,2]
[380183392,1755598246493,-483.23,0.00019726,2]
[380183393,1755598246503,-480.0,0.00019726,2]
[380183394,1755598246515,-2279.4,0.00019726,2]
[380183395,1755598246524,-480.0,0.00019726,2]
[380183396,1755598246533,-480.0,0.00019726,2]
[380183397,1755598246542,-867.74,0.00019726,2]
[380183398,1755598246551,-433.72,0.00019726,2]
[380183399,1755598246560,-480.0,0.00019726,2]
[380183400,1755598246569,-480.0,0.00019726,2]
[380183401,1755598246578,-497.21790699,0.00019726,2]
[380183402,1755598246587,-598.4,0.00019726,2]
[380183403,1755598246596,-573.71,0.00019726,2]
[380183404,1755598246605,-643.97,0.00019726,2]
[380183405,1755598246614,-1764.71,0.00019726,2]
[380183406,1755598246623,-728.38,0.00019726,2]
[380183407,1755598246632,-480.0,0.00019726,2]
[380183408,1755598246641,-480.0,0.00019726,2]
[380183409,1755598246650,-714.7,0.00019726,2]
[380183410,1755598246659,-480.0,0.00019726,2]
[380183411,1755598246669,-779.93,0.00019726,2]
[380183412,1755598246677,-1600.0,0.00019726,2]
[380183413,1755598246686,-2426.87,0.00019726,2]
[380183414,1755598246696,-480.0,0.00019726,2]
[380183415,1755598246705,-480.0,0.00019726,2]
[380183416,1755598246715,-494.80484904,0.00019726,2]
[380183417,1755598246724,-5907.38,0.00019726,2]
[380183418,1755598246733,-7280.33,0.00019726,2]
[380183419,1755598246742,-480.0,0.00019726,2]
[380183420,1755598246751,-480.0,0.00019726,2]
[380183421,1755598246760,-480.0,0.00019726,2]
[380183422,1755598246770,-480.0,0.00019726,2]
[380183423,1755598246779,-547.61,0.00019726,2]
[380183424,1755598246789,-480.0,0.00019726,2]
[380183425,1755598246798,-480.0,0.00019726,2]
[380183426,1755598246807,-480.0,0.00019726,2]
[380183427,1755598246816,-711.69,0.00019726,2]
[380183428,1755598246825,-480.0,0.00019726,2]
[380183429,1755598246834,-480.0,0.00019726,2]
[380183430,1755598246843,-480.0,0.00019726,2]
[380183431,1755598246853,-480.0,0.00019726,2]
[380183432,1755598246862,-480.0,0.00019726,2]
[380183433,1755598246871,-480.0,0.00019726,2]
[380183434,1755598246880,-480.0,0.00019726,2]
[380183435,1755598246889,-995.77,0.00019726,2]
[380183436,1755598246900,-1008.46,0.00019726,2]
[380183437,1755598246909,-2250.25,0.00019726,2]
[380183438,1755598246917,-864.22,0.00019726,2]
[380183439,1755598246926,-480.0,0.00019726,2]
[380183440,1755598246936,-385.77498191,0.00019726,2]
[380183441,1755598246945,-480.0,0.00019726,2]
[380183442,1755598246954,-480.0,0.00019726,2]
[380183443,1755598246963,-942.15,0.00019726,2]
[380183444,1755598246972,-2584.01,0.00019726,2]
[380183445,1755598246981,-480.0,0.00019726,2]
[380183446,1755598246990,-480.0,0.00019726,2]
[380183447,1755598246999,-480.0,0.00019726,2]
[380183448,1755598247009,-1502.78,0.00019726,2]
[380183449,1755598247018,-480.0,0.00019726,2]
[380183450,1755598247027,-1080.46,0.00019726,2]
[380183451,1755598247036,-155.31376365,0.00019726,2]
[380183452,1755598247045,-180.495187,0.00019786,3]
[380183453,1755598247054,-490.935053,0.00019863,2]
[380183454,1755598247063,-2118.711573,0.00019888,2]
[380183455,1755598247072,-500.0,0.00019899,2]
[380183456,1755598247081,-590.67306603,0.000199,2]
[380183457,1755598247090,-5822.07405277,0.000199,2]
[380183458,1755598247099,-160.0,0.00019917,2]
[380183459,1755598247108,-613.0,0.00019926,2]
[380183460,1755598247117,-155.31376365,0.00019945,2]
[380183461,1755598247126,-613.0,0.0001996,2]
[380183462,1755598247136,-501.66438607,0.00019973,2]
[380183463,1755598247148,-500.0,0.00019973,2]
[380183464,1755598247157,-500.0,0.00019973,2]
[380183465,1755598247166,-346.6210178,0.00019973,2]
[380183466,1755598247176,-502.59429379,0.00019973,2]
[380183467,1755598247186,-500.0,0.00019973,2]
[380183468,1755598247194,-501.62691226,0.00019973,2]
[380183469,1755598247203,-500.0,0.00019973,2]
[380183470,1755598247212,-495.55450042,0.00019973,2]
[380183471,1755598247222,-500.0,0.00019973,2]
[380183472,1755598247232,-100000.0,0.0001999,2]
[380183473,1755598247241,-151.0,0.0001999,2]
[380183474,1755598247250,-151.0,0.0001999,2]
[380183475,1755598247259,-151.0,0.0001999,2]
[380183476,1755598247268,-151.0,0.0001999,2]
[380183477,1755598247277,-151.0,0.0001999,2]
[380183478,1755598247287,-151.0,0.0001999,2]
[380183479,1755598247296,-151.0,0.0001999,2]
[380183480,1755598247304,-242.755203,0.0001999,2]
[380183481,1755598247314,-151.0,0.0001999,2]
[380183482,1755598247323,-151.0,0.0001999,2]
[380183483,1755598247332,-151.0,0.0001999,2]
[380183484,1755598247341,-151.0,0.0001999,2]
[380183485,1755598247350,-151.0,0.0001999,2]
[380183486,1755598247359,-151.0,0.0001999,2]
[380183487,1755598247367,-184.89444,0.0001999,2]
[380183488,1755598247376,-184.89444,0.0001999,2]
[380183489,1755598247385,-151.0,0.0001999,2]
[380183490,1755598247394,-151.0,0.0001999,2]
[380183491,1755598247403,-151.0,0.0001999,2]
[380183492,1755598247415,-151.0,0.0001999,2]
[380183493,1755598247424,-151.0,0.0001999,2]
[380183494,1755598247433,-151.0,0.0001999,2]
[380183495,1755598247442,-232.377118,0.0001999,2]
[380183496,1755598247451,-151.0,0.0001999,2]
[380183497,1755598247460,-151.0,0.0001999,2]
[380183498,1755598247469,-232.377118,0.0001999,2]
[380183499,1755598247478,-482.54212,0.0001999,2]
[380183500,1755598247487,-482.54212,0.0001999,2]
[380183501,1755598247496,-151.0,0.0001999,2]
[380183502,1755598247505,-151.0,0.0001999,2]
[380183503,1755598247514,-151.0,0.0001999,2]
[380183504,1755598247523,-151.0,0.0001999,2]
[380183505,1755598247532,-179.443811,0.0001999,2]
[380183506,1755598247542,-179.443811,0.0001999,2]
[380183507,1755598247551,-151.0,0.00019999,2]